Workbook

Sheet CashFlow
B1: 100 S Cherry St Wallingford CT
B2: $2,850,000 Acquisition Cost
B3: $10,933,849 Budget Cost
B4: Monthly Operating Income | C4: As Is | E4: Rent Breakdown | F4: Price | G4: Units
B5: Number of Units | C5: 66 | E5: 1 Bedroom | F5: 2000 | G5: 23
B6: Average Monthly Rent per Unit | C6: =C7/C5 -> 2172.2 | E6: 1 Bedroom (Affordable) | F6: 1629 | G6: 10
B7: Total Rental Income | C7: 143365.2 | E7: 2 Bedroom | F7: 2675 | G7: 23
B8: % Vacancy and Credit Losses | C8: 0.05 | E8: 2 Bedroom (Affordable) | F8: 1955 | G8: 10
B9: Total Vacancy Loss | C9: =C8*C7 -> 7168.26 | E9: TOTAL | F9: =(F5*G5)+(F6*G6)+(F7*G7)+(F8*G8) -> 143365 | G9: =SUM(G5:G8) -> 66
B10: Other Monthly Income (laundry, vending, parking, etc.)
B11: Gross Monthly Operating Income | C11: =C7-C9+C10 -> 136196.94
B13: Monthly Operating Expenses
B14: Property Management Fees | C14: =C11*0.05 -> 6809.847 | D14: 5% Rule of Thumb
B15: Repairs and Maintenance | C15: =C11*0.03 -> 4085.9082 | D15: 3% Rule of Thumb
B16: Real Estate Taxes | C16: 16666.66
B17: Rental Property Insurance | C17: 5500
B18: Landscaping | C18: 416.67
B19: Common Utilities | D19: Common Utiltiies
B20: - Water and Sewer | C20: 1791.67
B21: - Garbage | C21: 750
B22: - Electric | C22: 250
B23: Advertising
B24: Monthly Operating Expenses | C24: =SUM(C14:C23) -> 36270.7552
B26: Net Operating Income (NOI)
B27: Total Annual Operating Income | C27: =C11*12 -> 1634363.28
B28: Total Annual Operating Expense | C28: =C24*12 -> 435249.0624
B29: Annual Net Operating Income | C29: =C27-C28 -> 1199114.218
B31: Capitalization Rate and Valuation
B32: Desired Capitalization Rate | C32: 0.0625
B33: Property Valuation (Offer Price) | C33: =IF(C32=0," - ",C29/C32) -> 19185827.48
B34: Actual Purchase Price | C34: =2850000+10933849 -> 13783849 | D34: Acquisition + Construction Cost
B35: Actual Capitalization Rate | C35: =IF(C34=0," - ",C29/C34) -> 0.08699414928
B37: Loan Information
B38: Down Payment | C38: =C34*0.25 -> 3445962.25 | D38: 25% Down
B39: Loan Amount | C39: =C34-C38 -> 10337886.75 | D39: 75% LTV
B40: Acquisition Costs and Loan Fees | C40: =C34*0.0075 -> 103378.8675 | D40: .75% of Ask Price
B41: Length of Mortgage (years) | C41: 30
B42: Annual Interest Rate | C42: 0.0575
B43: Initial Investment | C43: =C38+C40 -> 3549341.118
B44: Monthly Mortgage Payment (PI) | C44: =IF(C39=0,0,-PMT(C42/12,C41*12,C39)) -> 60329.101
B45: Annual Interest | C45: =IF(C39=0,0,-CUMIPMT(C42/12,C41*12,C39,1,12,0)) -> 590959.9653
B46: Annual Principal | C46: =IF(C39=0,0,-CUMPRINC(C42/12,C41*12,C39,1,12,0)) -> 132989.2467
B47: Total Annual Debt Service | C47: =C44*12 -> 723949.212
B48: DEBT SERVICE RATIO | C48: =C29/C47 -> 1.656351299
B50: Cash Flow and ROI
B51: Total Monthly Cash Flow | C51: =C11-C24-C44 -> 39597.0838
B52: Total Annual Cash Flow | C52: =C29-C47 -> 475165.0056
B53: Cash on Cash Return (ROI) | C53: =IF(C43=0," ",C52/C43) -> 0.1338741445
B55: Note: This spreadsheet should only be used for informational and educational purposes. Please verify
B56: calculations and seek professional assistance before making financial decisions.
